Cogmind - Beta 16 --- EXPLORER MODE // 2025.11.13 @ 16:38:21 Player: K.K.Y. Result: Destroyed self with Subdweller Shrapnel Launcher Performance ------------- Evolutions (0) 0 Regions Visited (2) 400 Robots Destroyed (46) 230 Value Destroyed (1179) 1179 Prototype IDs (0) 0 Alien Tech Used (0) 0 Bonus (0) 0 TOTAL SCORE: 1809 Bonus ------- None Cogmind --------- Core Integrity 0/250 Matter 270/300 Energy 250/250 System Corruption 0% Temperature Cool (0) Movement Rolling (100) Ox1 Location -10/Subcaves Parts ------- > --- POWER (1) -------- Ion Engine > --- PROPULSION (3) --- Wheel Armored Wheel > --- UTILITY (2) ------ Large Storage Unit > --- WEAPON (2) ------- Subdweller Shrapnel Launcher Makeshift Sword > --- INVENTORY (15) --- Light Treads Light Treads Improved Heat Sink High-capacity Storage Unit Sensor Array Signal Interpreter Improved Terrain Scanner Transport Network Coupler ECM Suite Scrap Shield Cobbler Unit Dirty Datajack (20) Mining Laser Peak State ------------ > --- POWER ------------ Ion Engine > --- PROPULSION ------- Wheel Armored Wheel Armored Wheel > --- UTILITY ---------- Large Storage Unit Makeshift Light Armor Plating > --- WEAPON ----------- Barrage Gun Makeshift Sword > --- INVENTORY -------- Light Treads Light Treads Improved Heat Sink High-capacity Storage Unit Sensor Array Signal Interpreter Improved Terrain Scanner Transport Network Coupler ECM Suite Scrap Shield Cobbler Unit Dirty Datajack Mining Laser [Rating: 20] Favorites ----------- Power Ion Engine Engine Ion Engine Propulsion Armored Wheel Leg Aluminum Leg Wheel Armored Wheel Utility Large Storage Unit Device Improved Terrain Scanner Storage Large Storage Unit Protection Makeshift Light Armor Plating Weapon Barrage Gun Energy Gun Particle Gun Ballistic Gun Barrage Gun Ballistic Cannon Battle Cannon Launcher Subdweller Shrapnel Launcher Slashing Weapon Makeshift Sword Build | -11 -10 -10 ------- Run | Yrd Mat Sub Slots Evolved 1 | . 1 . Power . | . . . Propulsion 1 | . 1 . Utility . | . . . Weapon . | . . . Parts Attached 29 | 8 10 11 Power 3 | 1 1 1 Engine 3 | 1 1 1 Core . | . . . Reactor . | . . . Propulsion 11 | 2 6 3 Treads . | . . . Leg 2 | 2 . . Wheel 9 | . 6 3 Hover . | . . . Flight . | . . . Utility 6 | 3 2 1 Device 3 | 2 1 . Storage 2 | 1 1 . Processor . | . . . Hackware . | . . . Protection 1 | . . 1 Artifact . | . . . Weapon 9 | 2 1 6 Energy Gun 2 | 1 1 . Energy Cannon . | . . . Ballistic Gun 4 | 1 . 3 Ballistic Cannon 1 | . . 1 Launcher 1 | . . 1 Special Weapon . | . . . Impact Weapon . | . . . Slashing Weapon 1 | . . 1 Piercing Weapon . | . . . Special Melee Weapon . | . . . Unidentified Prototypes . | . . . Parts Lost 7 | . . 7 Power 1 | . . 1 Propulsion 3 | . . 3 Utility 2 | . . 2 Weapon 1 | . . 1 Highest Loss Streak 2 | . . 2 To Critical Strikes . | . . . Average Backups 12 | 7 9 14 Power . | . . . Propulsion 2 | 3 2 2 Utility 8 | 4 7 9 Weapon 1 | . . 1 Tool/Special . | . . . Unused Backups 17 | . 2 15 Power 1 | . 1 . Propulsion 3 | . 1 2 Utility 10 | . . 10 Weapon 2 | . . 2 Tool/Special 1 | . . 1 Average Slot Usage (%) 88 | . 99 83 Engine 7 | . 12 5 Wheel 32 | . 36 30 Device 5 | . 12 3 Storage 12 | . 12 12 Protection 4 | . . 6 Energy Gun 3 | . 12 . Ballistic Gun 11 | . 12 11 Ballistic Cannon 2 | . . 4 Slashing Weapon 5 | . . 7 Peak Build Rating 20 | 8 16 20 Average Rating 15 | 7 14 16 On Entrance 8 | . 8 16 Avg Prop Armor Cover (%) 6 | . . 6 Naked Turns . | . . . Heaviest Build 35 | 18 31 35 Greatest Support 42 | 20 36 42 Greatest Overweight (x) 2 | 1 . 2 Average Overweight (x) . | . . . Largest Inventory Capacity 15 | 10 15 15 Average Capacity 14 | 9 14 15 Most Carried 15 | 9 15 15 Average Carried 12 | 7 10 14 Final Capacity 15 | 10 15 15 Final Carried 15 | 9 15 15 Class Distribution -------------------- 100% | Hacker-Mutant Dominant Class ---------------- Hacker-Mutant | -10/Materials Hacker-Mutant | -10/Subcaves Resources | -11 -10 -10 ----------- Run | Yrd Mat Sub Matter Collected 1112 | 298 257 557 Remotely . | . . . Salvage Created 1486 | 141 576 769 Parts 105 | 17 40 48 Haulers Intercepted 2 | . 2 . Recyclers Shooed . | . . . Parts Field Recycled . | . . . Retrieved Matter . | . . . Parts Self-Destructed . | . . . Prevented . | . . . Parts Restored . | . . . Kills | -11 -10 -10 ------- Run | Yrd Mat Sub Combat Hostiles Destroyed 30 | . 9 21 Melee 4 | . . 4 Guns 21 | . 9 12 Cannons 5 | . . 5 Classes Destroyed 12 | 3 6 3 Worker 2 | 2 . . Builder 3 | . 3 . Tunneler 2 | 2 . . Hauler 2 | . 2 . Recycler 1 | 1 . . Mechanic 1 | . 1 . Turret 2 | . . 2 Watcher 3 | . 3 . Swarmer 6 | . 2 4 Grunt 7 | . 7 . Cobbler 1 | . . 1 Subdweller 17 | . . 17 Best Kill Streak 6 | 3 6 6 Combat Bots Only 5 | . 5 4 Max Kills in Single Turn 2 | 1 2 1 Gunslinging . | . . . Exploded . | . . . Melee 1 | . . 1 Uniques/NPCs Destroyed . | . . . Combat | -11 -10 -10 -------- Run | Yrd Mat Sub Hostile Shots Fired 176 | . 58 118 Missed 53 | . 17 36 Hits 123 | . 41 82 Projectile 123 | . 41 82 AOE 6 | . . 6 Critical Strikes 2 | . 2 . Damage Taken 1485 | . 363 1122 Core 274 | . 53 221 Absorbed by Shields . | . . . Ignored by Resistances 865 | . 212 653 Core Remaining (%) 100 | 100 . . Volleys Fired 129 | 6 44 79 Largest 2 | 2 2 2 Hottest 85 | 70 85 61 Shots Fired 214 | 12 87 115 Gun 177 | 12 87 78 Cannon 36 | . . 36 Launcher 1 | . . 1 Special . | . . . Kinetic 165 | 6 44 115 Thermal 49 | 6 43 . Explosive . | . . . Electromagnetic . | . . . Robot Hit Streak 43 | 10 31 43 Robot Miss Streak 3 | . 3 1 Penetration Max . | . . . Secondary Targets 2 | . 2 . Max Gunslinging Chain 1 | . 1 . Shots Hit Robots 176 | 10 61 105 Core Hits 77 | 6 30 41 Critical Kills 1 | . 1 . Critical Parts Destroyed 1 | . . 1 Critical Strikes 8 | 1 4 3 Burn 4 | 1 3 . Destroy 2 | . 1 1 Blast 2 | . . 2 Melee Attacks 27 | . . 27 Impact . | . . . Slashing 27 | . . 27 Piercing . | . . . Sneak Attacks 1 | . . 1 Combat Hostiles . | . . . Follow-up Attacks . | . . . Damage Inflicted 3110 | 124 901 2085 Guns 2043 | 124 837 1082 Cannons 530 | . . 530 Explosions . | . . . Melee 473 | . . 473 Ramming 64 | . 64 . Kinetic 2060 | 49 399 1612 Thermal 513 | 75 438 . Explosive . | . . . Electromagnetic . | . . . Impact . | . . . Slashing 473 | . . 473 Piercing . | . . . Highest Corruption . | . . . Average Corruption . | . . . Corruption Purged . | . . . Corruption Blocked . | . . . Overload Shots . | . . . Overflow Damage . | . . . Projectiles . | . . . Explosions . | . . . Melee . | . . . Knockbacks 2 | . . 2 Impact . | . . . Kinetic 2 | . . 2 Secondary . | . . . Self-Inflicted Damage 74 | . 30 44 Shots 1 | . . 1 Rammed 5 | . 5 . Targets Rammed 5 | . 5 . Kicked . | . . . Crushed . | . . . Highest Temperature 336 | 18 336 . Average Temperature 92 | 9 100 . Received Heat Transfer 672 | . 315 357 Effects 1 | . 1 . Matter Decay 1 | . 1 . Siege Activations . | . . . Martial Activations . | . . . Shielding Activations . | . . . Robots Disrupted . | . . . Combat Hostiles . | . . . Robots Corrupted . | . . . Combat Hostiles . | . . . Parts Fried . | . . . Impact Corruptions . | . . . Robots Melted . | . . . Combat Hostiles . | . . . Parts Melted 3 | 1 2 . Heat Transferred 1702 | 296 1406 . Parts Sabotaged . | . . . Parts Stolen . | . . . Parts Stripped . | . . . Power Chain Reactions . | . . . Alert | -11 -10 -10 ------- Run | Yrd Mat Sub Maximum Alert Level . | . . . Low Security (%) 100 | 100 100 . Level 1 . | . . . Level 2 . | . . . Level 3 . | . . . Level 4 . | . . . Level 5 . | . . . High Security . | . . . Max Security . | . . . Peak Influence 114 | 10 114 . Initial . | . . . Average 12 | . 17 . Influence Increases 468 | 25 278 165 Destroy 0b10 Robot/C 300 | . 180 120 Destroy 0b10 Robot/NC 70 | 25 45 . Destroy Leader 50 | . 50 . Destroy Structure 3 | . 3 . Lose Combat Pursuer 45 | . . 45 Influence Decreases 468 | 25 278 165 Time Decay 458 | 25 278 155 Lost Part 10 | . . 10 Squads Dispatched . | . . . Investigation . | . . . Extermination . | . . . Reinforcement . | . . . Assault . | . . . Garrison . | . . . Intercept . | . . . Searches Triggered . | . . . Construction Impeded . | . . . Haulers Reinforced . | . . . Active Scanning Responses . | . . . Cargo Convoy Interrupts . | . . . Stealth | -11 -10 -10 --------- Run | Yrd Mat Sub Distress Signals 3 | . 3 . Communications Jammed . | . . . Distress Signals . | . . . Times Spotted 43 | . 18 25 Peak Tracking Total 6 | . 6 6 Tactical Retreats 2 | . . 2 Traps | -11 -10 -10 ------- Run | Yrd Mat Sub Traps Triggered 2 | . 1 1 Indirectly . | . . . Trap Hack Attempts . | . . . Triggered . | . . . Disarmed . | . . . Reprogrammed . | . . . Reused . | . . . Traps Extracted . | . . . Installed . | . . . Triggered . | . . . Machines | -11 -10 -10 ---------- Run | Yrd Mat Sub Machines Disabled . | . . . Max in Single Turn . | . . . Machines Repaired . | . . . Machines Dismantled . | . . . Machines Sabotaged . | . . . Overloaded Fab Kills . | . . . Hacking | -11 -10 -10 --------- Run | Yrd Mat Sub Machines Accessed . | . . . Terminals . | . . . Fabricators . | . . . Repair Stations . | . . . Recycling Units . | . . . Scanalyzers . | . . . Garrison Access . | . . . Total Hacks . | . . . Successful . | . . . Failed . | . . . Catastrophic . | . . . Database Lockouts . | . . . Manual . | . . . Terminals . | . . . Fabricators . | . . . Repair Stations . | . . . Recycling Units . | . . . Scanalyzers . | . . . Garrison Access . | . . . Terminal Hacks . | . . . Fabricator Hacks . | . . . Repair Station Hacks . | . . . Recycling Unit Hacks . | . . . Scanalyzer . | . . . Garrison Access Hacks . | . . . Unauthorized Hacks . | . . . Terminals . | . . . Fabricators . | . . . Repair Stations . | . . . Recycling Units . | . . . Scanalyzers . | . . . Garrison Access . | . . . Data Cores Recovered . | . . . Used . | . . . Hacking Detections . | . . . Full Trace Events . | . . . Feedback Events . | . . . Feedback Blocked . | . . . Robot Schematics Acquired . | . . . Robots Built . | . . . Authchips . | . . . Time . | . . . Total Robot Build Rating . | . . . Part Schematics Acquired . | . . . Parts Built . | . . . Authchips . | . . . Time . | . . . Total Part Build Rating . | . . . Part Studies Acquired . | . . . Parts Repaired . | . . . Time . | . . . Parts Recycled . | . . . Recycled Matter . | . . . Retrieved Matter . | . . . Retrieved Components . | . . . Parts Scanalyzed . | . . . Part Schematics Acquired . | . . . Parts Damaged . | . . . Bothacking | -11 -10 -10 ------------ Run | Yrd Mat Sub Used RIF Installer . | . . . Robots Hacked . | . . . Non-combat . | . . . Combat . | . . . Robot Hacks Applied . | . . . Relay Couplers Released . | . . . Fabnet Peak Effective % . | . . . Robots Rewired . | . . . Allies Hacked . | . . . Hacks Repelled . | . . . Allies | -11 -10 -10 -------- Run | Yrd Mat Sub Total Allies . | . . . Largest Group . | . . . Highest-Rated Group . | . . . Highest-Rated Ally . | . . . Total Orders . | . . . Ally Attacks . | . . . Total Damage . | . . . Kills . | . . . Allies Corrupted . | . . . Allies Melted . | . . . Intel | -11 -10 -10 ------- Run | Yrd Mat Sub Active Infowar (turns) 1727 | 348 833 546 Terrain 1727 | 348 833 546 ECM 1 | 1 . . Robot Analysis Total . | . . . Derelict Logs Recovered 1 | . . 1 Drone Launches . | . . . Drone Recoveries . | . . . Exploration | -11 -10 -10 ------------- Run | Yrd Mat Sub Turns Passed 3333 | 364 833 2136 Spaces Moved 2523 | 90 724 1709 Core 32 | 32 . . Treads . | . . . Legs 58 | 58 . . Wheels 2433 | . 724 1709 Hover . | . . . Flight . | . . . Fastest Speed 50 | 50 80 86 Average Speed 94 | 97 89 96 Slowest Speed 120 | 120 90 120 Overloaded Moves . | . . . Propulsion Burnouts . | . . . Robots Hopped . | . . . Potential Cave-ins . | . . . Cave-ins Triggered . | . . . Exploration Rate (%) 61 | 8 99 76 Regions Visited 2 Branch Regions 1 Pre-discovered Areas 1 | . . 1 Known Exits Taken 2 | 1 1 . Unknown Exits Taken . | . . . Scrap Searched 11 | . . 11 Spaces Dug 2 | . . 2 Terrain Destroyed 3 | . . 3 Melee 2 | . . 2 Projectile 1 | . . 1 AOE . | . . . Terrain Rammed . | . . . Walls Destroyed . | . . . Machines Disabled . | . . . Actions | -11 -10 -10 --------- Run | Yrd Mat Sub Total 3245 | 353 826 2066 Wait 479 | 235 16 228 Move 2521 | 89 723 1709 Hop . | . . . Pick Up 35 | 14 17 4 Fast Attach 7 | 3 . 4 Attach 10 | 5 3 2 Detach 1 | . 1 . Swap 12 | . 7 5 Drop 19 | 1 10 8 Fire 129 | 6 44 79 Melee 27 | . . 27 Ram 5 | . 5 . Kick . | . . . Crush . | . . . Escape Stasis . | . . . Rewire . | . . . Trap . | . . . Miscellaneous . | . . . Route ------- -11/Scrapyard -10/Materials (discovered 6 exits: *Mat x3 / *Min x2 / *Sub) -10/Subcaves (discovered 3 exits: *Mat x2 / *Rec) History --------- Turn | Location | Event 8 | -11/Scrapyard | Identified exit to Materials 8 | -11/Scrapyard | Discovered exit to Materials (range 16) 365 | -11/Scrapyard | Entered Materials 365 | -10/Materials | Evolved 1 slot: Propulsion x1 412 | -10/Materials | Build established: Hacker-Mutant 697 | -10/Materials | Identified exit to Materials 697 | -10/Materials | Discovered exit to Materials (range 12) 773 | -10/Materials | Identified exit to Mines 773 | -10/Materials | Discovered exit to Mines (range 7) 825 | -10/Materials | Discovered exit to Materials (range 13) 974 | -10/Materials | Discovered exit to Mines (range 15) 1054 | -10/Materials | Discovered exit to Materials (range 7) 1192 | -10/Materials | Identified exit to Subcaves 1192 | -10/Materials | Discovered exit to Subcaves (range 7) 1198 | -10/Materials | Entered Subcaves 1199 | -10/Subcaves | Approached by a straggling Scientist 1512 | -10/Subcaves | Identified exit to Materials 1512 | -10/Subcaves | Discovered exit to Materials (range 3) 1739 | -10/Subcaves | Shifting Twisted Machinery released Barrage Gun 1768 | -10/Subcaves | Shifting Twisted Machinery released Sub. Monowheel 1960 | -10/Subcaves | A swath of the cavern ceiling suddenly collapsed 1997 | -10/Subcaves | Disturbed a concealed Subdweller 2004 | -10/Subcaves | Core integrity fell below 50% 2199 | -10/Subcaves | Identified exit to Recycling 2199 | -10/Subcaves | Discovered exit to Recycling (range 11) 2825 | -10/Subcaves | Discovered exit to Materials (range 11) 3321 | -10/Subcaves | Ambushed by Subdweller buried in earth 3322 | -10/Subcaves | Core integrity fell below 20% 3334 | -10/Subcaves | Destroyed self with Subdweller Shrapnel Launcher Last Messages --------------- 02928_ 59-AKE(R) destroyed. 02930_ Acquired 38 matter. 02986_ Sneak attack on 02-FU4(u). 02995_ Arm. Wheel destroyed. 03006_ B9-67H(R) destroyed. 03169_ Triggered Piercing Trap. 03169_ Spikes shoot up from the floor. 03169_ Critical hit (Impale). 03169_ Barrage Gun destroyed. 03221_ Mak. Light Armor Plating destroyed. 03229_ Destroyed Scrap Shield. 03232_ GZ-LAS(R) destroyed. 03236_ Acquired Sub. Monowheel. 03238_ Acquired 10 matter. 03320_ Sub. Monowheel shoots sparks and powers down. 03322_ FG-XWM(R): "ARGHSUB!" 03325_ FG-XWM(R) destroyed. 03329_ Acquired Sub. Shrapnel Launcher. 03333_ Dropped Broken Sub. Monowheel. Map ----- +----------------------------------------------------+ | ???????## #????????????## ##????????????????? | | ????????###?????????????## #????????????? ??? | | ?????????????????????????## #?????????????????## | | ??????????????????????????# #??????????????????? | | ?????????????????????????## #??????????????????? | | ?????????????????????????# ##??????????????????? | | ?????????????????????????# ##???????????????????? | | ?????????????????????????# ##???????????????????? | | ?????????????????????????## ####????????????????? | | ?????????????????????????## ##???????????????? | | ?????????????????????????# ##??????????????? | | ?????????????????????????# ##?????????????? | | ?????????????????????? ??## ###???????????? | | ?????????????????????? ???## ##??????????? | | ??????????????????????? ?### ##?????????? | | ??????????????????????? ## ## #?????????? | | ??????????????????????? # ######## #?????????? | | ???????????????????????? ####??## %#?????????? | | ???????????????????????? ##### #?????????? | | ????????????????????????# # ##?????????? | | ????????????????????????# ## #??????????? | | ??????????????????????#<# #?# #??????????? | | ??????????????????????#<< # #??## #??????????? | | ????????????? ???# R< #?##### #??????????? | | ?????????? ## R ##"""### #??????????? | | ?????????? R@ &## #??????????? | | ????????????# < %[ #??????###?? | | ????????????# # #;;* #??### #?? | | ????????????## #### ??# # ;#### ### #??? | | ????????????????????? ## ;;;#??## #??? | | ????????????#??????? ## ?#; #???# ##?? | | ???????????? ?????# ??# ######??## ### | | ??????????? ???? ??? ???????## ## | | ??????????? #???# ???? ????#### [######## | | ??????????? #???#???? ???## ## ###? | | ??????????? #???????## ???# ## | | ??????????# ????????## ##### # | | ?????????? #?????????###?# ### ![=*### ###? | | ????????## #?????????????## #?## !%# ## ###?# | | ????????# # #??????????####### ##?#" &%! ""## ### | | ????????#^^^########??## ### #?#"! & "# " "" | | ???????## ^^^ #?## ####*& ] """ | | ???????#^^ ^ #?# &## # #### !! %= "" "" | | ???????# ^^^^ ### ### #####?# * "## | | ???????# ####?# ### ##????# " ### | | ???????# [##???## ## #???# """#" " "#?## | | ???????## %!#????# #### #??# " ####### #### | | ???????#" &##???## ### ##??# ###????# " ## | | ???????## #???# ## #???#####???????# "" ## | | ????????#" #???## ### #??????????????##""" ### | +----------------------------------------------------+ Best States ------------- Heat Dissipation 25 Energy Generation 10 Energy Capacity 250 Matter Stores 300 Matter Capacity 300 Sight Range 16 Terrain Scan Range 16 Terrain Scan Density 10 ECM Strength 1 Armor Coverage 100 Resistance: KI 35 Resistance: TH 35 Resistance: EX 35 Resistance: EM 35 Resistance: I 35 Resistance: S 35 Resistance: P 35 Evasion (%) 55 Offensive Hacking 20 Item Schematics ----------------- None Robot Schematics ------------------ None Fabricated ------------ Nothing Repaired ---------- Nothing Studied --------- None Alien Tech Used ----------------- None Achievements -------------- None Challenges ------------ None Game ------ Seed RainbowImpactCompressor Manual? 0 Play Time 00:19:23 Cumulative 88.6 hours Start 2025.11.13 @ 16:19:42 End 2025.11.13 @ 16:38:21 Sessions 1 Manual Loads 0 Difficulty Explorer Special Mode None Game No. 90 Rogue 0 Adventurer 0 Explorer 90 Win Type - Total 0 Types 0/0/0/0/0/0/0/0/0/0 Lore% 57 Gallery% 55 Achievement% 44 Wizard Run 0 Options --------- Layout 1 ASCII 0 Keyboard 0 Movement Mouse Keybinds 0 Fullscreen 1 Font 24/Smallcaps Map View 50x35 Zoom Use 0% Tactical HUD 1 Map Filters NONE Filters NONE Steam 1 RUN: a373c053-4b7f-46f1-89eb-27c2b509001c